bitfinex/quotes_BTCUSD_20250324
["timestamp","ask_amount","ask_price","bid_price","bid_amount"]
[1742852741524,0.32845809,88267.0,88266.0,0.0003396]
[1742852742971,0.49046893,88267.0,88266.0,0.0003396]
[1742852743576,0.37715809,88267.0,88266.0,0.0003396]
[1742852781531,0.30055809,88267.0,88266.0,0.0003396]
[1742852783621,0.41481573,88267.0,88266.0,0.0003396]
[1742852785763,0.71981573,88267.0,88266.0,0.0003396]
[1742852785957,0.80061573,88267.0,88266.0,0.0003396]
[1742852786174,0.91487337,88267.0,88266.0,0.0003396]
[1742852786603,0.91187337,88267.0,88266.0,0.0003396]
[1742852786879,0.91687337,88267.0,88266.0,0.0003396]
[1742852787403,0.92087337,88267.0,88266.0,0.0003396]
[1742852787636,0.91687337,88267.0,88266.0,0.0003396]
[1742852787998,0.92087337,88267.0,88266.0,0.0003396]
[1742852788963,0.80161573,88267.0,88266.0,0.0003396]
[1742852789156,0.80661573,88267.0,88266.0,0.0003396]
[1742852802541,0.72581573,88267.0,88266.0,0.0003396]
[1742852819356,0.67211573,88267.0,88266.0,0.0003396]
[1742852826444,0.237954,88252.0,88251.0,0.0688189]
[1742852826667,0.24860851,88252.0,88251.0,0.0689424]
[1742852827729,0.24960851,88252.0,88251.0,0.0689424]
[1742852843632,0.24960851,88252.0,88251.0,0.0691585]
[1742852844023,0.24977831,88252.0,88251.0,0.0691585]
[1742852869865,0.24977831,88252.0,88251.0,0.0004631]
[1742852876863,0.01182431,88252.0,88251.0,0.2270891]
[1742852877553,0.23844731,88252.0,88251.0,0.0004631]
[1742852878387,0.01182431,88252.0,88251.0,0.0004631]
[1742852878674,0.23844731,88252.0,88251.0,0.0004631]
[1742852879305,0.01182431,88252.0,88251.0,0.0004631]
[1742852880449,0.01182431,88252.0,88251.0,0.2270891]
[1742852881716,0.01182431,88252.0,88251.0,0.0004631]
[1742852882135,0.01182431,88252.0,88251.0,0.2270891]
[1742852883676,0.01182431,88252.0,88251.0,0.0004631]
[1742852883914,0.01182431,88252.0,88251.0,0.2270891]
[1742852884353,0.0011698,88252.0,88251.0,0.2270891]
[1742852884579,0.01184637,88252.0,88251.0,0.0004631]
[1742852884727,0.0011698,88252.0,88251.0,0.2270891]
[1742852885145,0.01184637,88252.0,88251.0,0.0004631]
[1742852885306,0.0011698,88252.0,88251.0,0.0004631]
[1742852885528,0.2277928,88252.0,88251.0,0.0004631]
[1742852885725,0.0011698,88252.0,88251.0,0.0004631]
[1742852885972,0.23846937,88252.0,88251.0,0.0004631]
[1742852886174,0.01184637,88252.0,88251.0,0.0004631]
[1742852886377,0.01184637,88252.0,88251.0,0.3032891]
[1742852886581,0.0011698,88252.0,88251.0,0.3146201]
[1742852886787,0.0011698,88252.0,88251.0,0.3637201]
[1742852894895,0.0001698,88252.0,88251.0,0.3637201]
[1742852895863,0.0001698,88252.0,88251.0,0.0004631]
[1742852896059,0.0001698,88252.0,88251.0,0.2270891]
[1742852896060,0.01086793,88252.0,88251.0,0.2270891]
[1742852896423,0.0001698,88252.0,88251.0,0.2270891]
[1742852900218,0.0001698,88252.0,88251.0,0.2384201]
[1742852900674,0.0001698,88252.0,88251.0,0.2270891]
[1742852905430,0.0001698,88252.0,88251.0,0.6356891]
[1742852917066,0.0001698,88252.0,88251.0,0.6351971]
[1742852922254,0.01083914,88252.0,88251.0,0.6351971]
[1742852922562,0.0001698,88252.0,88251.0,0.6351971]
[1742852925074,0.01083863,88252.0,88251.0,0.6351971]
[1742852925293,0.0001698,88252.0,88251.0,0.6351971]
[1742852925473,0.01083863,88252.0,88251.0,0.6351971]
[1742852927798,0.01083863,88252.0,88251.0,0.6355367]
[1742852929917,0.0001698,88252.0,88251.0,0.6355367]
[1742852930243,0.0001698,88252.0,88251.0,0.7607767]
[1742852930666,0.01083863,88252.0,88251.0,0.7607767]
[1742852931626,0.0001698,88252.0,88251.0,0.7607767]
[1742852933166,0.01083863,88252.0,88251.0,0.7607767]
[1742852933365,0.0001698,88252.0,88251.0,0.7607767]
[1742852933593,0.01083863,88252.0,88251.0,0.7607767]
[1742852933817,0.0001698,88252.0,88251.0,0.7607767]
[1742852934012,0.01083379,88252.0,88251.0,0.7607767]
[1742852934213,0.0001698,88252.0,88251.0,0.7607767]
[1742852934446,0.01083379,88252.0,88251.0,0.7607767]
[1742852934645,0.0001698,88252.0,88251.0,0.7607767]
[1742852934962,0.01083379,88252.0,88251.0,0.7607767]
[1742852935165,0.0001698,88252.0,88251.0,0.7607767]
[1742852935358,0.01083379,88252.0,88251.0,0.7607767]
[1742852935655,0.0001698,88252.0,88251.0,0.7607767]
[1742852936088,0.01083379,88252.0,88251.0,0.7607767]
[1742852942846,0.01083379,88252.0,88251.0,0.8427767]
[1742852943271,0.0001698,88252.0,88251.0,0.8427767]
[1742852946776,0.0001698,88252.0,88251.0,0.8541077]
[1742852954997,0.02142485,88252.0,88251.0,0.8541077]
[1742852955732,0.02142485,88252.0,88251.0,0.85378971]
[1742852958795,0.0001698,88252.0,88251.0,0.85378971]
[1742853009183,0.0001698,88252.0,88251.0,0.77170971]
[1742853010170,0.0001698,88252.0,88251.0,0.36310971]
[1742853010373,0.0108319,88252.0,88251.0,0.36310971]
[1742853015348,0.0001698,88252.0,88251.0,0.36310971]
[1742853015595,0.01083065,88252.0,88251.0,0.36310971]
[1742853016167,0.01083065,88252.0,88251.0,0.23794971]
[1742853016365,0.01083065,88252.0,88251.0,0.35177871]
[1742853016787,0.01083065,88252.0,88251.0,0.36310971]
[1742853016940,0.01083065,88252.0,88251.0,0.35177871]
[1742853019058,0.25871345,88252.0,88251.0,0.1254996]
[1742853019260,0.27004445,88252.0,88251.0,0.1254996]
[1742853020271,0.24878465,88252.0,88251.0,0.1254996]
[1742853020816,0.24878465,88252.0,88251.0,0.0003396]
[1742853021004,0.24878465,88252.0,88251.0,0.1254996]
[1742853021960,0.24878465,88252.0,88251.0,0.0003396]
[1742853022203,0.24878465,88252.0,88251.0,0.1254996]
[1742853038785,0.24878465,88252.0,88251.0,0.0003396]
[1742853039225,0.29608465,88252.0,88251.0,0.0003396]
[1742853040510,0.29708465,88252.0,88251.0,0.0003396]
[1742853040849,0.29808465,88252.0,88251.0,0.0003396]
[1742853043947,0.4873703,88252.0,88251.0,0.0003396]
[1742853044140,0.92662794,88252.0,88251.0,6e-07]
[1742853044603,0.92462794,88252.0,88251.0,6e-07]
[1742853045034,0.92962794,88252.0,88251.0,6e-07]
[1742853045492,0.93462794,88252.0,88251.0,6e-07]
[1742853046316,0.93162794,88252.0,88251.0,6e-07]
[1742853046932,0.92962794,88252.0,88251.0,6e-07]
[1742853047141,0.93862794,88252.0,88251.0,0.0010006]
[1742853050683,0.562978,88243.0,88242.0,1e-06]
[1742853050882,0.80463564,88243.0,88242.0,1e-06]
[1742853051025,0.81514423,88243.0,88242.0,1e-06]
[1742853052562,0.83288602,88243.0,88242.0,1e-06]
[1742853053475,0.83788602,88243.0,88242.0,1e-06]
[1742853053644,0.95714366,88243.0,88242.0,1e-06]
[1742853054055,0.95214366,88243.0,88242.0,1e-06]
[1742853054463,0.95714366,88243.0,88242.0,1e-06]
[1742853054644,0.96550229,88243.0,88242.0,1e-06]
[1742853055678,0.9477605,88243.0,88242.0,1e-06]
[1742853057420,0.9527605,88243.0,88242.0,1e-06]
[1742853058846,0.97050336,88243.0,88242.0,1e-06]
[1742853059070,0.9527605,88243.0,88242.0,1e-06]
[1742853059301,0.97050339,88243.0,88242.0,1e-06]
[1742853061893,0.9527605,88243.0,88242.0,1e-06]
[1742853062122,0.96730135,88243.0,88242.0,1e-06]
[1742853062764,0.96230135,88243.0,88242.0,1e-06]
[1742853063461,0.96730135,88243.0,88242.0,1e-06]
[1742853063659,0.96230135,88243.0,88242.0,1e-06]
[1742853064158,0.96730135,88243.0,88242.0,1e-06]
[1742853064964,1.47110035,88243.0,88242.0,1e-06]
[1742853065186,1.16737835,88243.0,88242.0,1e-06]
[1742853066103,1.1851235,88243.0,88242.0,8e-07]
[1742853066305,0.9803861,88243.0,88242.0,8e-07]
[1742853066512,0.9853861,88243.0,88242.0,8e-07]
[1742853066753,0.9803861,88243.0,88242.0,8e-07]
[1742853067465,0.9853861,88243.0,88242.0,8e-07]
[1742853067912,0.9803861,88243.0,88242.0,8e-07]
[1742853068411,0.9753861,88243.0,88242.0,8e-07]
[1742853068807,0.9753861,88243.0,88220.0,2e-07]
[1742853068808,0.687138,88221.0,88220.0,2e-07]
[1742853069157,0.80139564,88221.0,88220.0,2e-07]
[1742853069365,0.81163021,88221.0,88220.0,2e-07]
[1742853069486,0.82937668,88221.0,88220.0,2e-07]
[1742853070122,0.83441778,88221.0,88220.0,2e-07]
[1742853070337,0.94626502,88221.0,88220.0,2e-07]
[1742853070539,0.95026502,88221.0,88220.0,2e-07]
[1742853070693,0.95526502,88221.0,88220.0,2e-07]
[1742853072198,0.9520594,88221.0,88220.0,2e-07]
[1742853073240,0.96348153,88221.0,88220.0,2e-07]
[1742853073677,0.563065,88211.0,88210.0,6e-07]
[1742853073877,0.79158028,88211.0,88210.0,6e-07]
[1742853074094,0.80173663,88211.0,88210.0,6e-07]
[1742853075419,0.80573663,88211.0,88210.0,6e-07]
[1742853075913,0.88203663,88211.0,88210.0,6e-07]
[1742853076062,0.89058187,88211.0,88210.0,6e-07]
[1742853076480,0.89558187,88211.0,88210.0,6e-07]
[1742853076655,0.89158187,88211.0,88210.0,6e-07]
[1742853077269,0.89658187,88211.0,88210.0,6e-07]
[1742853084111,0.94798187,88211.0,88210.0,6e-07]
[1742853086667,0.965732,88211.0,88210.0,6e-07]
[1742853092408,0.94798187,88211.0,88210.0,6e-07]
[1742853093413,1.07322187,88211.0,88210.0,6e-07]
[1742853094651,1.07776487,88211.0,88210.0,6e-07]
[1742853096522,0.563096,88199.0,88198.0,6e-07]
[1742853096725,0.5631,88198.0,88197.0,2e-07]
[1742853096928,0.67735764,88198.0,88197.0,2e-07]
[1742853097158,0.68737003,88198.0,88197.0,2e-07]
[1742853097379,0.81937888,88198.0,88197.0,2e-07]
[1742853097703,0.80162767,88198.0,88197.0,2e-07]
[1742853098453,0.80562767,88198.0,88197.0,2e-07]
[1742853098675,0.81062767,88198.0,88197.0,2e-07]
[1742853100515,0.82837896,88198.0,88197.0,2e-07]
[1742853102347,0.81062767,88198.0,88197.0,2e-07]
[1742853104103,0.37137003,88198.0,88197.0,2e-07]
[1742853104305,0.25711239,88198.0,88197.0,0.0769002]
[1742853104535,0.01901239,88198.0,88197.0,0.3647032]
[1742853104905,0.009,88198.0,88197.0,0.1266002]
[1742853105117,0.009,88198.0,88197.0,0.3647032]
[1742853105323,0.009,88198.0,88197.0,0.50133206]
[1742853105740,0.004,88198.0,88197.0,0.50133206]
[1742853106402,0.226732,88210.0,88208.0,0.0789]
[1742853106622,0.226734,88209.0,88208.0,0.0789]
[1742853107086,0.23500986,88209.0,88208.0,0.0789]
[1742853107303,0.00827586,88209.0,88208.0,0.0789]
[1742853107520,0.23500986,88209.0,88208.0,0.0789]
[1742853107976,0.00827586,88209.0,88208.0,0.0789]
[1742853108213,0.01027586,88209.0,88208.0,0.0789]
[1742853108452,0.01127586,88209.0,88208.0,0.305636]
[1742853110899,0.01127586,88209.0,88208.0,0.355436]
[1742853111138,0.01127586,88209.0,88208.0,0.764036]
[1742853111369,0.01127586,88209.0,88208.0,0.90417049]
[1742853111601,4.11e-05,88221.0,88219.0,0.365943]
[1742853111804,4.11e-05,88221.0,88219.0,1.01404064]
[1742853114191,0.0013396,88220.0,88219.0,1.01404064]
[1742853114421,0.0003396,88220.0,88219.0,1.01404064]
[1742853115930,0.0003396,88220.0,88219.0,1.02858149]
[1742853124231,0.0003396,88220.0,88219.0,1.03058149]
[1742853124744,0.0003396,88220.0,88219.0,1.33058149]
[1742853131746,0.0003396,88220.0,88219.0,0.90534149]
[1742853131944,0.0003396,88220.0,88219.0,1.03050149]
[1742853136634,0.0003396,88220.0,88219.0,1.33050149]
[1742853136848,0.0003396,88220.0,88219.0,1.86970149]
[1742853139415,6e-07,88220.0,88219.0,1.90981174]
[1742853139617,4.11e-05,88221.0,88220.0,0.24304]
[1742853139929,0.0003396,88243.0,88220.0,0.24304]
[1742853139930,0.0003396,88243.0,88242.0,0.663181]
[1742853140147,0.0001698,88252.0,88251.0,0.537957]
[1742853140148,4e-07,88252.0,88251.0,0.537957]
[1742853140374,0.0001705,88279.0,88270.0,0.615905]
[1742853140375,8e-07,88271.0,88270.0,0.615905]
[1742853140591,0.0001705,88279.0,88278.0,0.25242485]
[1742853140758,0.0001705,88279.0,88278.0,1.07524139]
[1742853141208,0.0001705,88279.0,88278.0,1.08632464]
[1742853141415,0.00029403,88279.0,88278.0,1.08632464]
[1742853141808,0.00229403,88279.0,88278.0,1.16432464]
[1742853141967,0.00029403,88279.0,88278.0,1.16432464]
[1742853142403,0.0001697,88285.0,88284.0,0.25240885]
[1742853142602,0.0001697,88285.0,88284.0,0.90574649]
[1742853143674,0.0001697,88285.0,88284.0,1.03086649]
[1742853144091,0.0021697,88285.0,88284.0,1.03940982]
[1742853144291,0.0031697,88285.0,88284.0,1.03940982]
[1742853146029,0.0031697,88285.0,88284.0,1.44796872]
[1742853147230,0.0001697,88285.0,88284.0,1.44796872]
[1742853147453,0.0011697,88285.0,88284.0,1.44796872]
[1742853147576,0.0031697,88285.0,88284.0,1.44796872]
[1742853152641,0.0031697,88285.0,88284.0,1.43938539]
[1742853156430,0.0031697,88285.0,88284.0,0.90030539]
[1742853157792,0.0031697,88285.0,88284.0,0.4085589]
[1742853158061,0.0031697,88285.0,88284.0,0.7601799]
[1742853158223,0.01253633,88285.0,88284.0,0.5336389]
[1742853158460,0.0031697,88285.0,88284.0,0.7601799]
[1742853158629,0.01252495,88285.0,88284.0,0.7601799]
[1742853159194,0.01252495,88285.0,88284.0,0.5336389]
[1742853160061,0.23906395,88285.0,88284.0,0.5336389]
[1742853160606,0.25038995,88285.0,88284.0,0.5336389]
[1742853161266,0.25038995,88285.0,88279.0,0.0001696]
[1742853161473,0.237878,88280.0,88279.0,0.0001696]
[1742853161881,0.23590769,88280.0,88279.0,0.0001696]
[1742853162491,0.00935669,88280.0,88279.0,0.0001696]
[1742853162995,0.23590769,88280.0,88279.0,0.0001696]
[1742853163613,0.23590769,88280.0,88278.0,0.4085589]
[1742853163614,0.23590769,88280.0,88278.0,0.40777854]
[1742853165746,0.226554,88279.0,88278.0,0.40777854]
[1742853165996,0.23591098,88279.0,88278.0,0.40777854]
[1742853166541,0.00935698,88279.0,88278.0,0.40777854]
[1742853167297,0.23591098,88279.0,88278.0,0.40777854]
[1742853167856,0.29333798,88279.0,88278.0,0.40777854]
[1742853169381,0.29633798,88279.0,88278.0,0.40777854]
[1742853170220,0.29833798,88279.0,88278.0,0.40777854]
[1742853170645,0.29833798,88279.0,88278.0,0.40794814]
[1742853170891,0.29867718,88279.0,88278.0,0.40794814]
[1742853177005,0.31986764,88279.0,88278.0,0.40794814]
[1742853178384,0.31986764,88279.0,88278.0,0.0001696]
[1742853179813,0.69646764,88279.0,88278.0,0.0001696]
[1742853189049,0.61986764,88279.0,88278.0,0.0001696]
[1742853196053,0.59867718,88279.0,88278.0,0.0001696]
[1742853201218,0.71293482,88279.0,88278.0,0.0001696]
[1742853201430,0.79003482,88279.0,88278.0,0.0001696]
[1742853202284,0.78703482,88279.0,88278.0,0.0001696]
[1742853202490,0.78503482,88279.0,88278.0,0.0001696]
[1742853202910,0.79003482,88279.0,88278.0,0.0001696]
[1742853203507,0.79503482,88279.0,88278.0,0.0001696]
[1742853203890,0.90429246,88279.0,88278.0,0.0001696]
[1742853204153,0.92929246,88279.0,88278.0,6e-07]
[1742853204283,0.82003482,88279.0,88278.0,6e-07]
[1742853207019,0.83777046,88279.0,88278.0,6e-07]
[1742853214012,0.82003482,88279.0,88278.0,6e-07]
[1742853214560,0.79503482,88279.0,88278.0,6e-07]
[1742853214765,0.82003482,88279.0,88278.0,6e-07]
[1742853215167,0.74293482,88279.0,88278.0,6e-07]
[1742853217902,0.71793482,88279.0,88278.0,6e-07]
[1742853218118,0.74293482,88279.0,88278.0,6e-07]
[1742853220875,0.76067047,88279.0,88278.0,6e-07]
[1742853222247,0.73567047,88279.0,88278.0,6e-07]
[1742853222462,0.76067047,88279.0,88278.0,6e-07]
[1742853222895,0.73567047,88279.0,88278.0,6e-07]
[1742853223127,0.67183482,88279.0,88278.0,6e-07]
[1742853225463,0.69683482,88279.0,88278.0,6e-07]
[1742853226201,0.67183482,88279.0,88278.0,6e-07]
[1742853226571,0.69683482,88279.0,88278.0,6e-07]
[1742853227550,0.71457001,88279.0,88278.0,6e-07]
[1742853230737,0.69683482,88279.0,88278.0,6e-07]
[1742853230943,0.71457022,88279.0,88278.0,6e-07]
[1742853232306,0.68957022,88279.0,88278.0,6e-07]
[1742853232436,0.71457022,88279.0,88278.0,6e-07]
[1742853232661,0.68957022,88279.0,88278.0,6e-07]
[1742853232873,0.71457022,88279.0,88278.0,6e-07]
[1742853233534,0.68957022,88279.0,88278.0,6e-07]
[1742853233714,0.71457022,88279.0,88278.0,6e-07]
[1742853236275,0.82882786,88279.0,88278.0,6e-07]
[1742853237440,0.81109246,88279.0,88278.0,6e-07]
[1742853238792,0.78609246,88279.0,88278.0,6e-07]
[1742853238999,0.81109246,88279.0,88278.0,6e-07]
[1742853239199,0.696106,88279.0,88278.0,6e-07]
[1742853240419,0.71384174,88279.0,88278.0,6e-07]
[1742853242417,0.68884174,88279.0,88278.0,6e-07]
[1742853242650,0.71384174,88279.0,88278.0,6e-07]
[1742853245493,0.696106,88279.0,88278.0,6e-07]
[1742853248660,0.71384156,88279.0,88278.0,6e-07]
[1742853249921,0.68884156,88279.0,88278.0,6e-07]
[1742853250501,0.71384156,88279.0,88278.0,6e-07]
[1742853253426,0.696106,88279.0,88278.0,6e-07]
[1742853254200,0.671106,88279.0,88278.0,6e-07]
[1742853257604,0.68884114,88279.0,88278.0,6e-07]
[1742853259018,0.38884114,88279.0,88278.0,6e-07]
[1742853259564,0.2745835,88279.0,88278.0,6e-07]
[1742853259740,0.5745835,88279.0,88278.0,6e-07]
[1742853261911,0.31896736,88279.0,88278.0,6e-07]
[1742853262112,0.01896736,88279.0,88278.0,0.1286006]
[1742853262344,0.01896736,88279.0,88278.0,0.77426314]
[1742853262589,0.03157558,88279.0,88278.0,0.77426314]
[1742853263217,0.02657558,88279.0,88278.0,0.77426314]
[1742853263432,0.02657558,88279.0,88278.0,0.78585633]
[1742853263812,0.02657558,88279.0,88278.0,0.90011397]
[1742853264305,0.0043392,88279.0,88278.0,0.90011397]
[1742853264757,0.0033392,88279.0,88278.0,0.90011397]
[1742853264968,0.0013392,88279.0,88278.0,0.90011397]
[1742853266538,0.0003392,88279.0,88278.0,0.90011397]
[1742853266731,0.0013392,88279.0,88278.0,0.90011397]
[1742853270887,0.0013392,88279.0,88278.0,0.91465482]
[1742853271097,0.0001697,88285.0,88284.0,0.358968]
[1742853271282,0.0001697,88285.0,88284.0,0.59826564]
[1742853272181,0.0011697,88285.0,88284.0,0.59826564]
[1742853273581,0.0031697,88285.0,88284.0,0.59826564]
[1742853274045,0.0011697,88285.0,88284.0,0.59826564]
[1742853274829,0.0001697,88285.0,88284.0,0.59826564]
[1742853274963,0.0001697,88285.0,88284.0,1.00470498]
[1742853282692,0.0001697,88285.0,88284.0,1.01924583]
[1742853294077,0.0001697,88285.0,88284.0,1.01920583]
[1742853300978,0.0001697,88285.0,88284.0,0.88356498]
[1742853301992,0.0001697,88285.0,88284.0,0.75856498]
[1742853302204,0.0001697,88285.0,88284.0,0.88356498]
[1742853303212,0.0001697,88285.0,88284.0,0.74723798]
[1742853303441,0.0001697,88285.0,88284.0,0.87223798]
[1742853305433,0.02141392,88285.0,88284.0,0.87223798]
[1742853305635,0.03058289,88285.0,88284.0,0.87223798]
[1742853306698,0.00933867,88285.0,88284.0,0.87223798]
[1742853312042,0.00933867,88285.0,88284.0,0.64569698]
[1742853312240,0.23587767,88285.0,88284.0,0.64569698]
[1742853313473,0.24720367,88285.0,88284.0,0.40643934]
[1742853313667,0.32620367,88285.0,88284.0,0.53143934]
[1742853313886,0.34742741,88285.0,88284.0,0.53143934]
[1742853314061,0.34742741,88285.0,88284.0,0.40643934]
[1742853315939,0.32620367,88285.0,88284.0,0.40643934]
[1742853320726,0.32720367,88285.0,88284.0,0.40643934]
[1742853321835,0.32820367,88285.0,88284.0,0.40643934]
[1742853325590,0.237878,88280.0,88279.0,0.0001696]
[1742853326035,0.24695384,88280.0,88279.0,0.0001696]
[1742853326979,0.24895384,88280.0,88279.0,0.0001696]
[1742853328022,0.32865384,88280.0,88279.0,0.0001696]
[1742853328659,0.34984903,88280.0,88279.0,0.0001696]
[1742853329082,0.35084903,88280.0,88279.0,0.0001696]
[1742853329463,0.34784903,88280.0,88279.0,0.0001696]
[1742853329892,0.35284903,88280.0,88279.0,0.0001696]
[1742853330226,0.35084903,88280.0,88279.0,0.0001696]
[1742853330668,0.35284903,88280.0,88279.0,0.0001696]
[1742853334927,0.46710667,88280.0,88279.0,0.0001696]
[1742853336933,0.40004903,88280.0,88279.0,0.0001696]
[1742853340023,0.40004903,88280.0,88258.0,0.226607]
[1742853340024,0.226603,88260.0,88258.0,0.1623852]
[1742853340279,0.226603,88260.0,88259.0,0.11425764]
[1742853341263,0.226603,88260.0,88259.0,0.23929764]
[1742853342028,0.226603,88260.0,88259.0,0.24129764]
[1742853342531,0.237933,88260.0,88259.0,0.002]
[1742853343719,0.237935,88259.0,88258.0,0.00012353]
[1742853344666,0.24955369,88259.0,88258.0,0.00012353]
[1742853345574,0.25851452,88259.0,88258.0,0.00012353]
[1742853349782,0.26151452,88259.0,88258.0,0.00012353]
[1742853349974,0.28271292,88259.0,88258.0,0.00012353]
[1742853350466,0.28671292,88259.0,88258.0,0.00012353]
[1742853356078,0.28671292,88259.0,88258.0,0.00029333]
[1742853362286,0.93263055,88259.0,88258.0,0.00029333]
[1742853362785,0.82767056,88259.0,88258.0,0.00029333]
[1742853363616,0.82367056,88259.0,88258.0,0.00029333]
[1742853363816,0.85761544,88259.0,88258.0,0.00029333]
[1742853364051,0.85861544,88259.0,88258.0,0.00029333]
[1742853364259,0.86161544,88259.0,88258.0,0.00029333]
[1742853365454,0.97587308,88259.0,88258.0,0.00029333]
[1742853367563,0.86161544,88259.0,88258.0,0.00029333]
[1742853369504,0.82467056,88259.0,88258.0,0.00029333]
[1742853369978,0.82567056,88259.0,88258.0,0.00029333]
[1742853370352,0.83067056,88259.0,88258.0,0.00029333]
[1742853371000,0.58971292,88259.0,88258.0,0.00029333]
[1742853371323,0.04015923,88259.0,88258.0,0.00029333]
[1742853371527,0.27309423,88259.0,88258.0,0.00029333]
[1742853371877,0.27809423,88259.0,88258.0,0.00029333]
[1742853374242,0.25689583,88259.0,88258.0,0.00029333]
[1742853385394,0.55689583,88259.0,88258.0,0.00029333]
[1742853385594,0.8169767,88259.0,88258.0,0.00029333]
[1742853386785,0.71875347,88259.0,88258.0,0.00029333]
[1742853388427,0.74115352,88259.0,88258.0,0.00029333]
[1742853396776,0.81945352,88259.0,88258.0,0.00029333]
[1742853407372,0.83399437,88259.0,88258.0,0.00029333]
[1742853408145,0.85899437,88259.0,88258.0,3.3e-07]
[1742853408340,0.97825201,88259.0,88258.0,3.3e-07]
[1742853408752,0.98675783,88259.0,88258.0,3.3e-07]
[1742853409184,0.97675783,88259.0,88258.0,3.3e-07]
[1742853409828,0.98175783,88259.0,88258.0,3.3e-07]
[1742853414619,0.95675783,88259.0,88258.0,3.3e-07]
[1742853414819,0.98175783,88259.0,88258.0,3.3e-07]
[1742853418159,0.96758019,88259.0,88258.0,3.3e-07]
[1742853418497,0.99258019,88259.0,88258.0,3.3e-07]
[1742853425989,0.99291979,88259.0,88258.0,3.3e-07]
[1742853429789,1.01066076,88259.0,88258.0,3.3e-07]
[1742853431123,0.91461979,88259.0,88258.0,3.3e-07]
[1742853431339,1.02887743,88259.0,88258.0,3.3e-07]
[1742853432386,0.99537161,88259.0,88258.0,3.3e-07]
[1742853432772,1.02037161,88259.0,88258.0,3.3e-07]
[1742853433014,0.99537161,88259.0,88258.0,3.3e-07]
[1742853434361,1.02037161,88259.0,88258.0,3.3e-07]
[1742853434570,0.99537161,88259.0,88258.0,3.3e-07]
[1742853439789,1.02037161,88259.0,88258.0,3.3e-07]
[1742853441498,0.99537161,88259.0,88258.0,3.3e-07]
[1742853446367,1.01311165,88259.0,88258.0,3.3e-07]
[1742853449083,0.96551165,88259.0,88258.0,3.3e-07]
[1742853450845,0.99051165,88259.0,88258.0,3.3e-07]
[1742853451394,0.96551165,88259.0,88258.0,3.3e-07]
[1742853451623,0.99051165,88259.0,88258.0,3.3e-07]
[1742853452924,0.96551165,88259.0,88258.0,3.3e-07]
[1742853453343,0.99051165,88259.0,88258.0,3.3e-07]
[1742853453561,0.96551165,88259.0,88258.0,3.3e-07]
[1742853453815,0.99051165,88259.0,88258.0,3.3e-07]
[1742853457196,0.96551165,88259.0,88258.0,3.3e-07]
[1742853457736,0.44249197,88259.0,88258.0,3.3e-07]
[1742853458033,0.40843397,88259.0,88258.0,3.3e-07]
[1742853458672,0.70843397,88259.0,88258.0,3.3e-07]
[1742853461695,0.69389312,88259.0,88258.0,3.3e-07]
[1742853462084,0.71163207,88259.0,88258.0,3.3e-07]
[1742853465272,0.80815076,88259.0,88258.0,3.3e-07]
[1742853466493,0.69389312,88259.0,88258.0,3.3e-07]
[1742853469512,0.70843397,88259.0,88258.0,3.3e-07]
[1742853469711,0.72617305,88259.0,88258.0,3.3e-07]
[1742853472357,0.7116322,88259.0,88258.0,3.3e-07]
[1742853472769,0.69389312,88259.0,88258.0,3.3e-07]
[1742853472920,0.76242875,88259.0,88258.0,3.3e-07]
[1742853477206,0.78016854,88259.0,88258.0,3.3e-07]
[1742853482916,0.76242875,88259.0,88258.0,3.3e-07]
[1742853485611,0.70843397,88259.0,88258.0,3.3e-07]
[1742853496829,0.537981,88242.0,88241.0,0.075]
[1742853497098,0.66085642,88242.0,88241.0,0.075]
[1742853498246,0.54659878,88242.0,88241.0,0.075]
[1742853498488,0.54959878,88242.0,88241.0,0.075]
[1742853498908,0.55359878,88242.0,88241.0,0.075]
[1742853507720,0.55359878,88242.0,88241.0,0.0751698]
[1742853520131,0.55359878,88242.0,88241.0,0.0001698]
[1742853520132,0.78211406,88242.0,88241.0,0.0001698]
[1742853520592,0.66785642,88242.0,88241.0,0.0001698]
[1742853521030,0.66385642,88242.0,88241.0,0.0001698]
[1742853521219,0.66585642,88242.0,88241.0,0.0001698]
[1742853521629,0.67085642,88242.0,88241.0,0.0001698]
[1742853524502,0.68539727,88242.0,88241.0,0.0001698]
[1742853524726,0.87495491,88242.0,88241.0,0.0001698]
[1742853525282,0.86995491,88242.0,88241.0,0.0001698]
[1742853525604,0.86495491,88242.0,88241.0,0.0001698]
[1742853525804,0.86995491,88242.0,88241.0,0.0001698]
[1742853526511,0.99499491,88242.0,88241.0,0.0001698]
[1742853527289,0.99999491,88242.0,88241.0,0.0001698]
[1742853527462,1.0177377,88242.0,88241.0,0.0001698]
[1742853527643,1.0127377,88242.0,88241.0,0.0001698]
[1742853528046,1.0177377,88242.0,88241.0,0.0001698]
[1742853528247,1.0127377,88242.0,88241.0,0.0001698]
[1742853528746,0.99999491,88242.0,88241.0,0.0001698]
[1742853530564,1.01273774,88242.0,88241.0,0.0001698]
[1742853531068,1.01773774,88242.0,88241.0,0.0001698]
[1742853531704,1.01773774,88242.0,88209.0,0.0001698]
[1742853531705,0.238067,88210.0,88209.0,0.0001698]
[1742853532144,0.36082748,88210.0,88209.0,0.0005817]
[1742853532942,0.66082748,88210.0,88209.0,0.0005817]
[1742853533149,0.67236745,88210.0,88209.0,0.0005817]
[1742853535024,0.67436745,88210.0,88209.0,0.0005817]
[1742853535220,0.67536745,88210.0,88209.0,0.0005817]
[1742853535532,0.69611578,88210.0,88209.0,0.0005817]
[1742853535838,0.69311578,88210.0,88209.0,0.0005817]
[1742853536347,0.30163332,88210.0,88209.0,0.0771817]
[1742853536595,0.30163332,88210.0,88209.0,0.3511157]
[1742853536596,0.01150284,88210.0,88209.0,0.3511157]
[1742853536812,0.01150284,88210.0,88209.0,0.88530934]
[1742853537027,0.007,88210.0,88209.0,0.88530934]
[1742853537458,0.102032,88237.0,88209.0,0.88530934]
[1742853537459,0.102032,88237.0,88236.0,0.226664]
[1742853537666,0.011333,88234.0,88229.0,0.0766]
[1742853537895,0.226678,88231.0,88229.0,0.0766]
[1742853538494,0.00842102,88230.0,88229.0,0.0766]
[1742853539876,0.226675,88232.0,88229.0,0.0766]
[1742853540077,0.23509802,88231.0,88229.0,0.0766]
[1742853540774,0.00842102,88231.0,88230.0,0.22668]
[1742853540977,0.01142102,88231.0,88230.0,0.22668]
[1742853541497,0.00842102,88231.0,88230.0,0.22668]
[1742853541719,0.226665,88236.0,88233.0,0.226672]
[1742853541927,0.226667,88235.0,88233.0,0.226672]
[1742853542131,0.226665,88236.0,88233.0,0.226672]
[1742853542420,0.226667,88235.0,88231.0,0.226677]
[1742853542627,0.226673,88233.0,88229.0,0.30328]
[1742853542827,0.226673,88233.0,88230.0,0.226679]
[1742853543844,0.003,88236.0,88235.0,0.226667]
[1742853544093,0.003,88236.0,88235.0,0.88905764]
[1742853544315,0.003,88236.0,88235.0,0.91497912]
[1742853544529,0.226581,88269.0,88257.0,0.35481]